Workbook

Sheet List1
A3: Obec , IČ: Náklo, 00299251
A5: Rozpočtové opatření č. 4 - duben 2022
A7: V souladu s ustanovením § 16 zákona č. 250/2000 Sb., o rozpočtových pravidlech územních rozpočtů dojde k rozpočtovému
A8: opatření v případě změn rozpočtových prostředků na závazných ukazatelích.
A10: Rozpočtové opatření č. 4/2022 (předloženo na Radě obce 11. 4. 2022) a doplněno při jednání na zasedání Rady obce
A12: PŘÍJMY
A13: PAR | B13: POL | C13: UZ | D13: PARAGRAF | E13: popis | F13: Rozpočet na rok 2022 | G13: Rozpočet po změnách | H13: změna ROZP | I13: ROZP po ZMĚNĚ | J13: POZNÁMKA
A14: 6171 | B14: 2324 | E14: Přijaté neinvestiční příspěvky a náhrady | F14: 0 | G14: 0 | H14: -75000 | I14: =H14 -> -75000 | J14: DOPLNĚNÍ NÁSTROJ, ZDROZ A UZ - EDUCOL NAVRÁTILOVÁ
A15: 6171 | B15: 2324 | C15: 13013 | E15: Přijaté neinvestiční příspěvky a náhrady | F15: 0 | G15: 0 | H15: 63750 | I15: =H15 -> 63750 | J15: N 104 Z 5 - EDUCOL NAVRÁTILOVÁ
A16: 6171 | B16: 2324 | C16: 13013 | E16: Přijaté neinvestiční příspěvky a náhrady | F16: 0 | G16: 0 | H16: 11250 | I16: =H16 -> 11250 | J16: N 104 Z 1 - EDUCOL NAVRÁTILOVÁ
A17: 6171 | D17: Činnost místní samosprávy | F17: 76000 | G17: 176000 | H17: =SUM(H13:H16) -> 0 | I17: =H17+G17 -> 176000
D18: Celkem ZMĚNY v PŘÍJMECH | F18: 33700619.7 | G18: 34803814.22 | H18: =H17 -> 0 | I18: =H18+G18 -> 34803814.22
D20: Celkem PŘÍJMY | F20: =F18 -> 33700619.7 | G20: =G18 -> 34803814.22 | H20: =H18 -> 0 | I20: =H20+G20 -> 34803814.22
A22: VÝDAJE:
A23: PAR | B23: POL | C23: UZ | D23: PARAGRAF | E23: popis | F23: Rozpočet na rok 2022 | G23: Rozpočet po změnách | H23: změna ROZP | I23: ROZP po ZMĚNĚ | J23: POZNÁMKA
A24: 2219 | B24: 5171 | E24: Opravy a udržování | F24: 50000 | G24: 40000 | H24: 291706.55 | I24: =H24+G24 -> 331706.55 | J24: oprava zastávky Mezice
A25: 2219 | D25: Ostatní záležitosti pozemních komunikací | F25: 247510 | G25: 329710.76 | H25: =SUM(H24) -> 291706.55 | I25: 621417.31
A26: 3319 | B26: 5139 | E26: Nákup materiálu jinde nezařazený | F26: 1000 | G26: 1000 | H26: 988 | I26: =H26+G26 -> 1988 | J26: pamětní kniha
A27: 3319 | D27: Ostatní záležitosti kultury | F27: 23000 | G27: 23000 | H27: =H26 -> 988 | I27: 23988
A28: 3341 | B28: 5169 | E28: Nákup ostatních služeb | F28: 3000 | G28: 5000 | H28: 4000 | I28: 9000 | J28: platba za kmintočet
A29: 3341 | D29: Rozhlas a televize | F29: 6000 | G29: 8000 | H29: =H28 -> 4000 | I29: 12000
A30: 3429 | B30: 5137 | E30: Drobný dlouhodobý majetek | F30: 10000 | G30: 10000 | H30: 16633.12 | I30: =H30+G30 -> 26633.12 | J30: změna vyřazení z dotace KD Mezice
A31: 3429 | B31: 6121 | E31: stavby | F31: 5180352 | G31: 5180352 | H31: =-406794-16633.12 -> -423427.12 | I31: =H31+G31 -> 4756924.88 | J31: změna POL u dotace KD Mezice
A32: 3429 | B32: 6129 | E32: Nákup dlouhodobého hmotného majetku jinde nezařazený | F32: 0 | G32: 0 | H32: 406794 | I32: =H32+G32 -> 406794 | J32: změna POL u dotace KD Mezice
A33: 3429 | D33: Ostatní zájmové činnosti a rekreace | F33: 5925352 | G33: 5930352 | H33: =H32+H31+H30 -> 0 | I33: =H33+G33 -> 5930352
A34: 3612 | B34: 5151 | E34: Studená voda včetně stočného | F34: 5000 | G34: 5000 | H34: 22000 | I34: 27000 | J34: studená voda byty
A35: 3612 | B35: 5153 | E35: plyn | F35: 125000 | G35: 125000 | H35: 46000 | I35: 171000 | J35: plyn L39 a N64
A36: 3612 | D36: Bytové hospodářství | F36: 210000 | G36: 1752882.4 | H36: =SUM(H34:H35) -> 68000 | I36: 1820882.4
A37: 3639 | B37: 5362 | E37: Platby daní státnímu rozpočtu | F37: 6000 | G37: 8000 | H37: 2000 | I37: =H37+G37 -> 10000
A38: 3639 | B38: 6130 | E38: Pozemky | F38: 54935.7 | G38: 1285923.34 | H38: -2000 | I38: =H38+G38 -> 1283923.34
A39: 3639 | D39: Komunální služby a územní rozvoj jinde nezařazené | F39: 7667935.7 | G39: 8925489.54 | H39: =+H38+H37 -> 0 | I39: =H39+G39 -> 8925489.54
A40: 3745 | B40: 5139 | E40: Nákup materiálu jinde nezařazený | F40: 70000 | G40: 70000 | H40: 180000 | I40: =F40+H40 -> 250000 | J40: výsadba stromů
A41: 3745 | D41: Péče o vzhled obcí a veřejnou zeleň | F41: 480600 | G41: 480600 | H41: =H40 -> 180000 | I41: =F41+H41 -> 660600
A42: 6171 | B42: 5011 | C42: 13013 | E42: Platy zaměst.v pr.poměru vyjma zaměst.na služ.m. | F42: 0 | G42: 169746 | H42: -139746 | I42: =H42+G42 -> 30000 | J42: N 104 Z 1 - oprava Educol
A43: 6171 | B43: 5011 | C43: 13013 | E43: Platy zaměst.v pr.poměru vyjma zaměst.na služ.m. | F43: 0 | G43: 29952 | H43: 139746 | I43: 169698 | J43: N 104 Z 5 - oprava Educol
A44: 6171 | B44: 5031 | C44: 13013 | E44: Povinné poj.na soc.zab.a přísp.nast.pol.zaměst. | F44: 0 | G44: 42085.2 | H44: -34658.4 | I44: 7426.8 | J44: N 104 Z 1 - oprava Educol
A45: 6171 | B45: 5031 | C45: 13013 | E45: Povinné poj.na soc.zab.a přísp.nast.pol.zaměst. | F45: 0 | G45: 7426.8 | H45: 34658.4 | I45: 42085.2 | J45: N 104 Z 5 - oprava Educol
A46: 6171 | B46: 5032 | C46: 13013 | E46: Povinné pojistné na veřejné zdravotní pojištění | F46: 0 | G46: 15279.6 | H46: -12583.2 | I46: 2696.4 | J46: N 104 Z 1 - oprava Educol
A47: 6171 | B47: 5032 | C47: 13013 | E47: Povinné pojistné na veřejné zdravotní pojištění | F47: 0 | G47: 2696.4 | H47: 12583.2 | I47: 15279.6 | J47: N 104 Z 5 - oprava Educol
A48: 6171 | B48: 5492 | E48: Dary fyzickým osobám | F48: 0 | G48: 0 | H48: 6000 | I48: 6000
A49: 6171 | B49: 5169 | E49: Nákup ostatních služeb | F49: 1500000 | G49: 1500000 | H49: -299000 | I49: 1201000
A50: 6171 | B50: 5137 | E50: Drobný dlouhodobý majetek | F50: 30000 | G50: 65062 | H50: 7000 | I50: =H50+G50 -> 72062
A51: 6171 | D51: Činnost místní samosprávy | F51: 5427999 | G51: 9246630 | H51: =SUM(H48:H50) -> -286000 | I51: =H51+G51 -> 8960630
A52: 2321 | B52: 5139 | E52: Nákup materiálu jinde nezařazený | F52: 300000 | G52: 300000 | H52: =-250706.55-11988+4000 -> -258694.55 | I52: =H52+G52 -> 41305.45
A53: 2321 | D53: Odvádění a čištění odpadních vod | F53: 1162500 | G53: 1162500 | H53: =H52 -> -258694.55 | I53: 903805.45
D54: Celkem ZMĚNY ve VÝDAJÍCH | F54: 33700619.7 | G54: =[1]List1!$G$46 -> 38512723.69 | H54: =+H25+H29+H36+H41+H51+H53+H27 -> 5.820766091e-11 | I54: =H54+F54 -> 33700619.7
D56: Celkem VÝDAJE | G56: =F54 -> 33700619.7 | H56: =H54 -> 5.820766091e-11 | I56: =I54 -> 33700619.7
D58: Celkem 5XXX
D59: Celkem 6XXX
A62: FINANCOVÁNÍ
A63: PAR | B63: POL | C63: UZ | D63: PARAGRAF | E63: popis | F63: Rozpočet na rok 2022 | G63: Rozpočet po změnách | H63: změna ROZP | I63: ROZP po ZMĚNĚ | J63: POZNÁMKA
D66: Celkem ZMĚNY ve FINANCOVÁNÍ: | I66: =I64 -> 0
D69: REKAPITULACE:
D71: Celkem PŘÍJMY | G71: =F20 -> 33700619.7 | H71: =H18 -> 0 | I71: =I18 -> 34803814.22
D72: Celkem FINANCOVÁNÍ: | H72: =I66 -> 0 | I72: 3708909.47
D73: Celkem PŘÍJMY+FINANCOVÁNÍ | G73: =G71 -> 33700619.7 | H73: =+H72+H71 -> 0 | I73: =I72+I71 -> 38512723.69
D75: Celkem VÝDAJE | G75: =F54 -> 33700619.7 | H75: =H54 -> 5.820766091e-11 | I75: =G54 -> 38512723.69
A78: Důvodová zpráva k rozpočtovému opatření č. 4 /2022
A80: Přesun prostředků v rámci nezajištěného výdaje je Čerpán z rezervy obce.
A82: Správce rozpočtu :
A84: Starosta obce :
A86: Rada obce schvaluje dne 11. 4. 2022 rozpočtové opatření č. 4/2022 v předloženém rozsahu.

Sheet List2
A1: TEXTY PRO FORMULÁŘ ÚPRAVA ROZPOČTU - na začátek kopírují se řádky 3-13
A2: poznámka: Texty, které budou přenášeny z tohoto formuláře, musí být zapsány pouze ve sloupci A
A5: Obec , IČ: Náklo, 00299251
A7: Rozpočtové změny roku 2019 -duben
A9: V souladu s ustanovením § 16 zákona č. 250/2000 Sb., o rozpočtových pravidlech územních rozpočtů dojde k rozpočtovému
A10: opatření v případě změn rozpočtových prostředků na závazných ukazatelích.
A12: Rozpočtové opatření č. 1/2019 (předloženo na ZQ 6. 6. 2018) a doplněno při jednání na ZO
A14: TEXTY PRO FORMULÁŘ ÚPRAVA ROZPOČTU - na začátek kopírují se řádky 16-32
A16: Důvodová zpráva k rozpočtovému opatření č. 1/2019
A18: Přesun prostředků v rámci nezajištěného výdaje je Čerpán z rezervy obce.
A20: Správce rozpočtu :
A22: Starosta obce :
A24: ZO schvaluje dne 6. 6. 2018 rozpočtové opatření č. 3/2018 v předloženém rozsahu Usnesením č. 1038/1860

Sheet List3
